{"text_format":"3","workbook":"xlsx","n_sheets":5,"sheets":["Меню","Запрос на выдачу ТУ юр лицо","Запрос на выдачу ТУ ИП","Запрос на выдачу ТУ физ лицо","Списки"],"not_rendered":{"macros":1,"defined_names":4},"read":"whole","date_system":"1900"}

{"sheet":"Меню","index":0,"n_rows":7,"n_cols":2,"rows_kept":7}
[]
[null,"Выберите нужный вариант:"]
[null,"Предоставление Технических условия подключения и информации о плате за подключение объекта капитального строительства  к тепловым сетям ПАО \"МОЭК\""]
[null,"Форма запроса в случае если Вы:"]
[null,"Юридическое лицо"]
[null,"Индивидуальный предприниматель"]
[null,"Физическое лицо"]

{"sheet":"Запрос на выдачу ТУ юр лицо","index":1,"n_rows":100,"n_cols":12,"rows_kept":100,"merged":[[2,6,2,10],[4,1,4,10],[7,1,7,10],[8,1,8,10],[9,1,9,10],[11,1,11,10],[11,11,13,11],[13,2,13,10],[14,2,14,4],[14,6,14,10],[15,2,15,7],[15,9,15,10],[16,2,16,7],[17,2,17,7],[17,9,17,10],[19,2,19,10],[20,2,20,10],[23,2,23,10],[25,2,25,4],[25,8,25,10],[27,2,27,4],[27,8,27,10],[29,1,29,4],[30,2,30,10],[33,2,33,5],[33,7,33,10],[35,2,35,10],[37,2,37,4],[39,2,39,10],[45,1,45,2],[45,4,45,10],[46,1,46,10],[48,1,48,10],[50,1,53,10],[57,1,59,10],[61,1,61,10],[80,1,80,10],[90,2,90,9],[91,2,91,9],[92,2,92,9],[95,2,95,10],[96,9,96,10],[97,2,97,3],[97,9,97,10]]}
[]
[null,"НА БЛАНКЕ ОРГАНИЗАЦИИ для юридического лица",{"$nulls":9},"Комментарии для заполнения:"]
[{"$nulls":6},"Заместителю управляющего директора – директору по технологическим присоединениям ПАО \"МОЭК\"\nЕрашову С.С."]
[]
[null,{"$f":"CONCATENATE(\"ЗАПРОС О ПРЕДОСТАВЛЕНИИ ТЕХНИЧЕСКИХ УСЛОВИЙ ПОДКЛЮЧЕНИЯ ОБЪЕКТА КАПИТАЛЬНОГО СТРОИТЕЛЬСТВА К СИСТЕМЕ ТЕПЛОСНАБЖЕНИЯ\",\" \",C14)","v":"ЗАПРОС О ПРЕДОСТАВЛЕНИИ ТЕХНИЧЕСКИХ УСЛОВИЙ ПОДКЛЮЧЕНИЯ ОБЪЕКТА КАПИТАЛЬНОГО СТРОИТЕЛЬСТВА К СИСТЕМЕ ТЕПЛОСНАБЖЕНИЯ "}]
[{"$nulls":4},"(для юридического лица)"]
[{"$nulls":4},"Уважаемый Сергей Сергеевич!"]
[null,"Прошу Вас подготовить и выдать технические условия подключения к системе теплоснабжения ПАО \"МОЭК\" объекта капитального строительства:"]
[]
[null,"(наименование объекта)"]
[]
[null,"1. Сведения о заявителе:"]
[]
[null,"Полное наименование организации"]
[]
[null,"Ф.И.О. уполномоченного органа (представителя)",{"$nulls":6},"ИНН"]
[null,null,"* В данной графе указываются лица, имеющие право действовать от имени Общества на основании доверенности, либо без доверенности на основании учредительных документов."]
[null,"Документ, подтверждающий полномочия представителя"]
[]
[null,"Адрес места нахождения","Индекс, город, улица, дом, строение, корпус, владение"]
[null,null,"** Место нахождения юридического лица определяется местом его государственной регистрации на территории Российской Федерации. Юридическое лицо несет риск последствий неполучения юридически значимых сообщений, доставленных по адресу, указанному в ЕГРЮЛ. Сообщения, доставленные по адресу, указанному в ЕГРЮЛ, считаются полученными юридическим лицом, даже если оно не находится по указанному адресу."]
[]
[]
[null,"Контактное лицо (Ф.И.О.)"]
[]
[null,"Основной телефон ",{"$nulls":5},"Дополнительный телефон"]
[]
[null,"Основной e-mail",{"$nulls":5},"Дополнительный e-mail"]
[]
[null,"Уведомить меня по основным контактным данным ",{"$nulls":3},"Да",{"$nulls":5},"Необходимо выбрать нужный вариант"]
[null,null,"*** В случае если Заявитель будет недоступен по вышеуказанному контакту, Технические условия подключения будут отправлены почтой по  адресу, указанному в Разделе 1 настоящего Запроса"]
[null,"2. Местонахождение и назначение подключаемого объекта"]
[]
[null,"Город",{"$nulls":4},"Район"]
[]
[null,"Населённый пункт"]
[]
[null,"Округ",{"$nulls":9},"Необходимо выбрать из выпадающего списка"]
[]
[null,"Улица"]
[]
[null,"Дом",null,null,"Владение",null,"Корпус",null,null,"Строение"]
[]
[null,"Назначение объекта:"]
[]
[{"$nulls":4},{"$f":"IF(B46=Списки!B25,Списки!C25,IF(B46=Списки!B26,Списки!C26,IF(B46=Списки!B27,Списки!C27,IF(B46=Списки!B28,Списки!C28,IF(B46=Списки!B29,Списки!C29,IF(B46=Списки!B30,Списки!C30,IF(B46=Списки!B31,Списки!C31,IF(B46=Списки!B32,Списки!C32,IF(B46=Списки!B33,Списки!C33,IF(B46=Списки!B34,Списки!C34,IF(B46=Списки!B35,Списки!C35,IF(B46=Списки!B36,Списки!C36,IF(B46=Списки!B37,Списки!C37,IF(B46=Списки!B38,Списки!C38,IF(B46=Списки!B39,Списки!C39,IF(B46=Списки!B40,Списки!C40,IF(B46=Списки!B41,Списки!C41,IF(B46=Списки!B42,Списки!C42,IF(B46=Списки!B43,Списки!C43,IF(B46=Списки!B44,Списки!C44,IF(B46=Списки!B45,Списки!C45,IF(B46=Списки!#REF!,Списки!#REF!,IF(B46=Списки!B46,Списки!C46,IF(B46=Списки!B47,Списки!C47,))))))))))))))))))))))))","v":"-"},{"$nulls":6},"Необходимо выбрать из выпадающего списка"]
[null,"* В случае если Заявитель будет недоступен по вышеуказанному контакту, технические условия либо мотивированный отказ в выдаче указанных технических условий при отсутствии технической возможности подключения к системе теплоснабжения будет отправлен АО «Почта России» по адресу, указанному в Разделе 1 настоящего Запроса"]
[]
[null,"3. Информация о границах земельного участка, на котором планируется осуществить строительство объекта капитального строительства или на котором расположен реконструируемый объект капитального строительства.:"]
[]
[]
[]
[]
[]
[]
[null,"4. Информация о разрешенном использовании земельного участка:"]
[]
[]
[]
[]
[]
[null,"5. Технические параметры подключаемого объекта (заполняется при наличии соответствующей информации, не обязательно для заполнения)"]
[null,"5.1 Таблица тепловых нагрузок по видам потребления",{"$nulls":6},"поле не заполняется"]
[null,"(Заполняется одна из двух таблиц)"]
[null,"Для неподключенных строящихся (построенных) объектов:",{"$nulls":6},"поле считается автоматически"]
[]
[null,"Наименование","Отопление","Вентиляция","Тепловые завесы","ГВС ср.","ГВС макс.","Кондиционирование","Прочее","Всего (с учетом ГВС ср.)","Всего (с учетом ГВС макс)"]
[null,"Тепловая нагрузка, Гкал / час",{"v":0,"d":"0.00000"},{"v":0,"d":"0.00000"},{"v":0,"d":"0.00000"},{"v":0,"d":"0.00000"},{"v":0,"d":"0.00000"},{"v":0,"d":"0.00000"},{"v":0,"d":"0.00000"},{"$f":"C68+D68+E68+F68+H68+I68","v":{"v":0,"d":"0.00000"}},{"$f":"C68+D68+E68+G68+H68+I68","v":{"v":0,"d":"0.00000"}}]
[null,"Температурный график"]
[null,"Схема подключения "]
[]
[null,"Для реконструируемых объектов:"]
[]
[null,"Наименование","Отопление","Вентиляция","Тепловые завесы","ГВС ср.","ГВС макс.","Кондиционирование","Прочее","Всего (с учетом ГВС ср.)","Всего (с учетом ГВС макс)"]
[null,"Тепловая нагрузка существующая, Гкал / час",{"v":0,"d":"0.00000"},{"v":0,"d":"0.00000"},{"v":0,"d":"0.00000"},{"v":0,"d":"0.00000"},{"v":0,"d":"0.00000"},{"v":0,"d":"0.00000"},{"v":0,"d":"0.00000"},{"$f":"C75+D75+E75+F75+H75+I75","v":{"v":0,"d":"0.00000"}},{"$f":"C75+D75+E75+G75+H75+I75","v":{"v":0,"d":"0.00000"}}]
[null,"Тепловая нагрузка после реконструкции, Гкал / час",{"v":0,"d":"0.00000"},{"v":0,"d":"0.00000"},{"v":0,"d":"0.00000"},{"v":0,"d":"0.00000"},{"v":0,"d":"0.00000"},{"v":0,"d":"0.00000"},{"v":0,"d":"0.00000"},{"$f":"C76+D76+E76+F76+H76+I76","v":{"v":0,"d":"0.00000"}},{"$f":"C76+D76+E76+G76+H76+I76","v":{"v":0,"d":"0.00000"}}]
[null,"Тепловая нагрузка дополнительная, Гкал / час",{"$f":"C76-C75","v":{"v":0,"d":"0.00000"}},{"$f":"D76-D75","v":{"v":0,"d":"0.00000"}},{"v":0,"d":"0.00000"},{"v":0,"d":"0.00000"},{"v":0,"d":"0.00000"},{"v":0,"d":"0.00000"},{"v":0,"d":"0.00000"},{"$f":"J76-J75","v":{"v":0,"d":"0.00000"}},{"$f":"K76-K75","v":{"v":0,"d":"0.00000"}}]
[null,"Температурный график"]
[null,"Схема подключения"]
[]
[null,"ВАЖНО: При подключении или реконструкции нескольких объектов (зданий/корпусов), подключенных от одного абонента, в Таблицу необходимо свести все  объекты по аналогии."]
{"$rows_empty":8}
[null,null,"Перечень необходимых документов для выдачи Технических условий подключения:"]
[null,1,"Документы, подтверждающие полномочия лица, подписавшего запрос (документ о назначении руководителя юридического лица, доверенность представителя контрагента на право подписания запроса, в случае подписания запроса лицом, действующим на основании доверенности)."]
[null,2,"Правоустанавливающие документы на земельный участок (выписка из ЕГРН, договор аренды и пр.)."]
[]
[]
[]
[]
[null,"Заявитель",{"$nulls":7},"дд.мм.гг"]
[null,null,"ФИО",{"$nulls":3},"Подпись",null,null,"Дата"]
[]
[null,"М.П."]

{"sheet":"Запрос на выдачу ТУ ИП","index":2,"n_rows":98,"n_cols":12,"rows_kept":98,"merged":[[1,6,1,10],[3,1,3,10],[6,1,6,10],[7,1,7,10],[8,1,8,10],[11,1,11,10],[11,11,13,11],[13,2,13,10],[14,2,14,4],[14,6,14,10],[15,2,15,7],[15,9,15,10],[16,2,16,7],[17,2,17,7],[17,9,17,10],[19,2,19,10],[20,9,20,10],[23,2,23,10],[25,2,25,4],[25,8,25,10],[27,2,27,4],[27,8,27,10],[29,1,29,4],[30,2,30,10],[33,2,33,5],[33,7,33,10],[35,2,35,10],[37,2,37,4],[39,2,39,10],[45,1,45,2],[45,4,45,10],[46,1,46,10],[48,1,48,10],[50,1,53,10],[57,1,59,10],[61,1,61,10],[80,1,80,10],[89,2,89,9],[90,2,90,9],[91,2,91,9],[93,2,93,10],[94,9,94,10],[95,2,95,3],[95,9,95,10]]}
[]
[{"$nulls":6},"Заместителю управляющего директора – директору по технологическим присоединениям ПАО \"МОЭК\"\nЕрашову С.С."]
[]
[null,{"$f":"CONCATENATE(\"ЗАПРОС О ПРЕДОСТАВЛЕНИИ ТЕХНИЧЕСКИХ УСЛОВИЙ ПОДКЛЮЧЕНИЯ ОБЪЕКТА КАПИТАЛЬНОГО СТРОИТЕЛЬСТВА К СИСТЕМЕ ТЕПЛОСНАБЖЕНИЯ\",\" \",C14)","v":"ЗАПРОС О ПРЕДОСТАВЛЕНИИ ТЕХНИЧЕСКИХ УСЛОВИЙ ПОДКЛЮЧЕНИЯ ОБЪЕКТА КАПИТАЛЬНОГО СТРОИТЕЛЬСТВА К СИСТЕМЕ ТЕПЛОСНАБЖЕНИЯ "}]
[{"$nulls":4},"(для индивидуального предпринимателя)"]
[{"$nulls":4},"Уважаемый Сергей Сергеевич!"]
[null,"Прошу Вас подготовить и выдать технические условия подключения к системе теплоснабжения ПАО \"МОЭК\" объекта капитального строительства:"]
[]
[null,"(наименование объекта)"]
[]
[]
[null,"1. Сведения о заявителе:"]
[]
[null,"Ф.И.О. индивидуального предпринимателя"]
[]
[null,"Ф.И.О. представителя (уполномоченного лица)",{"$nulls":6},"ИНН"]
[null,null,"*В данной графе указываются лица, имеющие право действовать от имени ИП на основании доверенности."]
[null,"Документ, подтверждающий полномочия представителя"]
[]
[null,"Адрес регистрации по месту жительства","Индекс, город, улица, дом, строение, корпус, владение"]
[]
[]
[]
[null,"Контактное лицо (Ф.И.О.)"]
[]
[null,"Основной телефон ",{"$nulls":5},"Дополнительный телефон"]
[]
[null,"Основной e-mail",{"$nulls":5},"Дополнительный e-mail"]
[]
[null,"Уведомить меня по основным контактным данным ",{"$nulls":3},"Да",{"$nulls":5},"Необходимо выбрать нужный вариант"]
[null,null,"*** В случае если Заявитель будет недоступен по вышеуказанному контакту, Технические условия подключения будут отправлены почтой по  адресу, указанному в Разделе 1 настоящего Запроса"]
[null,"2. Местонахождение и назначение подключаемого объекта"]
[]
[null,"Город",{"$nulls":4},"Район"]
[]
[null,"Населённый пункт"]
[]
[null,"Округ",{"$nulls":9},"Необходимо выбрать из выпадающего списка"]
[]
[null,"Улица"]
[]
[null,"Дом",null,null,"Владение",null,"Корпус",null,null,"Строение"]
[]
[null,"Назначение объекта:"]
[]
[{"$nulls":4},{"$f":"IF(B46=Списки!B25,Списки!C25,IF(B46=Списки!B26,Списки!C26,IF(B46=Списки!B27,Списки!C27,IF(B46=Списки!B28,Списки!C28,IF(B46=Списки!B29,Списки!C29,IF(B46=Списки!B30,Списки!C30,IF(B46=Списки!B31,Списки!C31,IF(B46=Списки!B32,Списки!C32,IF(B46=Списки!B33,Списки!C33,IF(B46=Списки!B34,Списки!C34,IF(B46=Списки!B35,Списки!C35,IF(B46=Списки!B36,Списки!C36,IF(B46=Списки!B37,Списки!C37,IF(B46=Списки!B38,Списки!C38,IF(B46=Списки!B39,Списки!C39,IF(B46=Списки!B40,Списки!C40,IF(B46=Списки!B41,Списки!C41,IF(B46=Списки!B42,Списки!C42,IF(B46=Списки!B43,Списки!C43,IF(B46=Списки!B44,Списки!C44,IF(B46=Списки!B45,Списки!C45,IF(B46=Списки!#REF!,Списки!#REF!,IF(B46=Списки!B46,Списки!C46,IF(B46=Списки!B47,Списки!C47,))))))))))))))))))))))))","v":"-"},{"$nulls":6},"Необходимо выбрать из выпадающего списка"]
[null,"* В случае если Заявитель будет недоступен по вышеуказанному контакту, технические условия либо мотивированный отказ в выдаче указанных технических условий при отсутствии технической возможности подключения к системе теплоснабжения будет отправлен АО «Почта России» по адресу, указанному в Разделе 1 настоящего Запроса"]
[]
[null,"3. Информация о границах земельного участка, на котором планируется осуществить строительство объекта капитального строительства или на котором расположен реконструируемый объект капитального строительства.:"]
[]
[]
[]
[]
[]
[]
[null,"4 Информация о разрешенном использовании земельного участка:"]
[]
[]
[]
[]
[]
[null,"5. Технические параметры подключаемого объекта (заполняется при наличии соответствующей информации, не обязательно для заполнения)"]
[null,"5.1 Таблица тепловых нагрузок по видам потребления",{"$nulls":6},"поле не заполняется"]
[null,"(Заполняется одна из двух таблиц)"]
[null,"Для неподключенных строящихся (построенных) объектов:",{"$nulls":6},"поле считается автоматически"]
[]
[null,"Наименование","Отопление","Вентиляция","Тепловые завесы","ГВС ср.","ГВС макс.","Кондиционирование","Прочее","Всего (с учетом ГВС ср.)","Всего (с учетом ГВС макс)"]
[null,"Тепловая нагрузка, Гкал / час",{"v":0,"d":"0.00000"},{"v":0,"d":"0.00000"},{"v":0,"d":"0.00000"},{"v":0,"d":"0.00000"},{"v":0,"d":"0.00000"},{"v":0,"d":"0.00000"},{"v":0,"d":"0.00000"},{"$f":"C68+D68+E68+F68+H68+I68","v":{"v":0,"d":"0.00000"}},{"$f":"C68+D68+E68+G68+H68+I68","v":{"v":0,"d":"0.00000"}}]
[null,"Температурный график"]
[null,"Схема подключения "]
[]
[null,"Для реконструируемых объектов:"]
[]
[null,"Наименование","Отопление","Вентиляция","Тепловые завесы","ГВС ср.","ГВС макс.","Кондиционирование","Прочее","Всего (с учетом ГВС ср.)","Всего (с учетом ГВС макс)"]
[null,"Тепловая нагрузка существующая, Гкал / час",{"v":0,"d":"0.00000"},{"v":0,"d":"0.00000"},{"v":0,"d":"0.00000"},{"v":0,"d":"0.00000"},{"v":0,"d":"0.00000"},{"v":0,"d":"0.00000"},{"v":0,"d":"0.00000"},{"$f":"C75+D75+E75+F75+H75+I75","v":{"v":0,"d":"0.00000"}},{"$f":"C75+D75+E75+G75+H75+I75","v":{"v":0,"d":"0.00000"}}]
[null,"Тепловая нагрузка после реконструкции, Гкал / час",{"v":0,"d":"0.00000"},{"v":0,"d":"0.00000"},{"v":0,"d":"0.00000"},{"v":0,"d":"0.00000"},{"v":0,"d":"0.00000"},{"v":0,"d":"0.00000"},{"v":0,"d":"0.00000"},{"$f":"C76+D76+E76+F76+H76+I76","v":{"v":0,"d":"0.00000"}},{"$f":"C76+D76+E76+G76+H76+I76","v":{"v":0,"d":"0.00000"}}]
[null,"Тепловая нагрузка дополнительная, Гкал / час",{"$f":"C76-C75","v":{"v":0,"d":"0.00000"}},{"$f":"D76-D75","v":{"v":0,"d":"0.00000"}},{"v":0,"d":"0.00000"},{"v":0,"d":"0.00000"},{"v":0,"d":"0.00000"},{"v":0,"d":"0.00000"},{"v":0,"d":"0.00000"},{"$f":"J76-J75","v":{"v":0,"d":"0.00000"}},{"$f":"K76-K75","v":{"v":0,"d":"0.00000"}}]
[null,"Температурный график"]
[null,"Схема подключения"]
[]
[null,"ВАЖНО: При подключении или реконструкции нескольких объектов (зданий/корпусов), подключенных от одного абонента, в Таблицу необходимо свести все  объекты по аналогии."]
{"$rows_empty":7}
[null,null,"Перечень необходимых документов для выдачи Технических условий подключения:"]
[null,1,"Документы, подтверждающие полномочия лица, подписавшего запрос (документ о назначении руководителя юридического лица, доверенность представителя контрагента на право подписания запроса, в случае подписания запроса лицом, действующим на основании доверенности)."]
[null,2,"Правоустанавливающие документы на земельный участок (выписка из ЕГРН, договор аренды и пр.)."]
[]
[]
[]
[null,"Заявитель",{"$nulls":7},"дд.мм.гг"]
[null,null,"ФИО",{"$nulls":3},"Подпись",null,null,"Дата"]
[]
[null,"М.П."]

{"sheet":"Запрос на выдачу ТУ физ лицо","index":3,"n_rows":95,"n_cols":12,"rows_kept":95,"merged":[[1,6,1,10],[3,1,3,10],[6,1,6,10],[7,1,7,10],[8,1,8,10],[11,1,11,10],[11,11,26,11],[13,2,13,10],[15,2,15,4],[18,2,18,10],[19,9,19,10],[22,2,22,10],[24,2,24,4],[24,8,24,10],[26,2,26,4],[26,8,26,10],[28,1,28,4],[29,2,29,10],[32,2,32,5],[32,7,32,10],[34,2,34,10],[36,2,36,4],[38,2,38,10],[44,1,44,2],[44,4,44,10],[45,1,45,10],[48,1,48,10],[50,1,53,10],[57,1,59,10],[61,1,61,10],[80,1,80,10],[87,2,87,9],[88,2,88,9],[90,2,90,10],[91,9,91,10],[92,2,92,3],[92,9,92,10]]}
[]
[{"$nulls":6},"Заместителю управляющего директора – директору по технологическим присоединениям ПАО \"МОЭК\"\nЕрашову С.С."]
[]
[null,{"$f":"CONCATENATE(\"ЗАПРОС О ПРЕДОСТАВЛЕНИИ ТЕХНИЧЕСКИХ УСЛОВИЙ ПОДКЛЮЧЕНИЯ ОБЪЕКТА КАПИТАЛЬНОГО СТРОИТЕЛЬСТВА К СИСТЕМЕ ТЕПЛОСНАБЖЕНИЯ\",\" \",C14)","v":"ЗАПРОС О ПРЕДОСТАВЛЕНИИ ТЕХНИЧЕСКИХ УСЛОВИЙ ПОДКЛЮЧЕНИЯ ОБЪЕКТА КАПИТАЛЬНОГО СТРОИТЕЛЬСТВА К СИСТЕМЕ ТЕПЛОСНАБЖЕНИЯ "}]
[{"$nulls":4},"(для физического лица)"]
[{"$nulls":4},"Уважаемый Сергей Сергеевич!"]
[null,"Прошу Вас подготовить и выдать технические условия подключения к системе теплоснабжения ПАО \"МОЭК\" объекта капитального строительства:"]
[]
[null,"(наименование объекта)"]
[]
[]
[null,"1. Сведения о заявителе:"]
[]
[null," Ф.И.О. Заявителя"]
[]
[null,"ИНН"]
[]
[]
[null,"Адрес регистрации по месту жительства","Индекс, город, улица, дом, строение, корпус, владение"]
[]
[]
[]
[null,"Контактное лицо (Ф.И.О.)"]
[]
[null,"Основной телефон ",{"$nulls":5},"Дополнительный телефон"]
[]
[null,"Основной e-mail",{"$nulls":5},"Дополнительный e-mail"]
[]
[null,"Уведомить меня по основным контактным данным ",{"$nulls":3},"Да",{"$nulls":5},"Необходимо выбрать нужный вариант"]
[null,null,"*** В случае если Заявитель будет недоступен по вышеуказанному контакту, Технические условия подключения будут отправлены почтой по  адресу, указанному в Разделе 1 настоящего Запроса"]
[null,"2. Местонахождение и назначение подключаемого объекта"]
[]
[null,"Город",{"$nulls":4},"Район"]
[]
[null,"Населённый пункт"]
[]
[null,"Округ",{"$nulls":9},"Необходимо выбрать из выпадающего списка"]
[]
[null,"Улица"]
[]
[null,"Дом",null,null,"Владение",null,"Корпус",null,null,"Строение"]
[]
[null,"Назначение объекта:"]
[]
[{"$nulls":4},{"$f":"IF(B45=Списки!B25,Списки!C25,IF(B45=Списки!B26,Списки!C26,IF(B45=Списки!B27,Списки!C27,IF(B45=Списки!B28,Списки!C28,IF(B45=Списки!B29,Списки!C29,IF(B45=Списки!B30,Списки!C30,IF(B45=Списки!B31,Списки!C31,IF(B45=Списки!B32,Списки!C32,IF(B45=Списки!B33,Списки!C33,IF(B45=Списки!B34,Списки!C34,IF(B45=Списки!B35,Списки!C35,IF(B45=Списки!B36,Списки!C36,IF(B45=Списки!B37,Списки!C37,IF(B45=Списки!B38,Списки!C38,IF(B45=Списки!B39,Списки!C39,IF(B45=Списки!B40,Списки!C40,IF(B45=Списки!B41,Списки!C41,IF(B45=Списки!B42,Списки!C42,IF(B45=Списки!B43,Списки!C43,IF(B45=Списки!B44,Списки!C44,IF(B45=Списки!B45,Списки!C45,IF(B45=Списки!#REF!,Списки!#REF!,IF(B45=Списки!B45,Списки!C46,IF(B45=Списки!B47,Списки!C47,))))))))))))))))))))))))","v":"-"},{"$nulls":6},"Необходимо выбрать из выпадающего списка"]
[null,"* В случае если Заявитель будет недоступен по вышеуказанному контакту, технические условия либо мотивированный отказ в выдаче указанных технических условий при отсутствии технической возможности подключения к системе теплоснабжения будет отправлен АО «Почта России» по адресу, указанному в Разделе 1 настоящего Запроса"]
[]
[]
[null,"3. Информация о границах земельного участка, на котором планируется осуществить строительство объекта капитального строительства или на котором расположен реконструируемый объект капитального строительства.:"]
[]
[]
[]
[]
[]
[]
[null,"4. Информация о разрешенном использовании земельного участка:"]
[]
[]
[]
[]
[]
[null,"5. Технические параметры подключаемого объекта (заполняется при наличии соответствующей информации, не обязательно для заполнения)"]
[null,"5.1 Таблица тепловых нагрузок по видам потребления",{"$nulls":6},"поле не заполняется"]
[null,"(Заполняется одна из двух таблиц)"]
[null,"Для неподключенных строящихся (построенных) объектов:",{"$nulls":6},"поле считается автоматически"]
[]
[null,"Наименование","Отопление","Вентиляция","Тепловые завесы","ГВС ср.","ГВС макс.","Кондиционирование","Прочее","Всего (с учетом ГВС ср.)","Всего (с учетом ГВС макс)"]
[null,"Тепловая нагрузка, Гкал / час",{"v":0,"d":"0.00000"},{"v":0,"d":"0.00000"},{"v":0,"d":"0.00000"},{"v":0,"d":"0.00000"},{"v":0,"d":"0.00000"},{"v":0,"d":"0.00000"},{"v":0,"d":"0.00000"},{"$f":"C68+D68+E68+F68+H68+I68","v":{"v":0,"d":"0.00000"}},{"$f":"C68+D68+E68+G68+H68+I68","v":{"v":0,"d":"0.00000"}}]
[null,"Температурный график"]
[null,"Схема подключения "]
[]
[null,"Для реконструируемых объектов:"]
[]
[null,"Наименование","Отопление","Вентиляция","Тепловые завесы","ГВС ср.","ГВС макс.","Кондиционирование","Прочее","Всего (с учетом ГВС ср.)","Всего (с учетом ГВС макс)"]
[null,"Тепловая нагрузка существующая, Гкал / час",{"v":0,"d":"0.00000"},{"v":0,"d":"0.00000"},{"v":0,"d":"0.00000"},{"v":0,"d":"0.00000"},{"v":0,"d":"0.00000"},{"v":0,"d":"0.00000"},{"v":0,"d":"0.00000"},{"$f":"C75+D75+E75+F75+H75+I75","v":{"v":0,"d":"0.00000"}},{"$f":"C75+D75+E75+G75+H75+I75","v":{"v":0,"d":"0.00000"}}]
[null,"Тепловая нагрузка после реконструкции, Гкал / час",{"v":0,"d":"0.00000"},{"v":0,"d":"0.00000"},{"v":0,"d":"0.00000"},{"v":0,"d":"0.00000"},{"v":0,"d":"0.00000"},{"v":0,"d":"0.00000"},{"v":0,"d":"0.00000"},{"$f":"C76+D76+E76+F76+H76+I76","v":{"v":0,"d":"0.00000"}},{"$f":"C76+D76+E76+G76+H76+I76","v":{"v":0,"d":"0.00000"}}]
[null,"Тепловая нагрузка дополнительная, Гкал / час",{"$f":"C76-C75","v":{"v":0,"d":"0.00000"}},{"$f":"D76-D75","v":{"v":0,"d":"0.00000"}},{"v":0,"d":"0.00000"},{"v":0,"d":"0.00000"},{"v":0,"d":"0.00000"},{"v":0,"d":"0.00000"},{"v":0,"d":"0.00000"},{"$f":"J76-J75","v":{"v":0,"d":"0.00000"}},{"$f":"K76-K75","v":{"v":0,"d":"0.00000"}}]
[null,"Температурный график"]
[null,"Схема подключения"]
[]
[null,"ВАЖНО: При подключении или реконструкции нескольких объектов (зданий/корпусов), подключенных от одного абонента, в Таблицу необходимо свести все  объекты по аналогии."]
[]
[]
[]
[]
[]
[null,null,"Перечень необходимых документов для выдачи Технических условий подключения:"]
[null,1,"Документы, подтверждающие полномочия лица, подписавшего запрос (документ о назначении руководителя юридического лица, доверенность представителя контрагента на право подписания запроса, в случае подписания запроса лицом, действующим на основании доверенности)."]
[null,2,"Правоустанавливающие документы на земельный участок (выписка из ЕГРН, договор аренды и пр.)."]
[]
[]
[null,"Заявитель",{"$nulls":7},"дд.мм.гг"]
[null,null,"ФИО",{"$nulls":3},"Подпись",null,null,"Дата"]
[]
[null,"М.П."]

{"sheet":"Списки","index":4,"n_rows":57,"n_cols":3,"rows_kept":57,"hidden":true}
[]
[null,"Схема подключения"]
[]
[null,"Зависимая"]
[null,"Независимая"]
[]
[null,"Округ"]
[]
[null,"ЦАО"]
[null,"САО"]
[null,"СВАО"]
[null,"ВАО"]
[null,"ЮВАО"]
[null,"ЮАО"]
[null,"ЮЗАО"]
[null,"ЗАО"]
[null,"СЗАО"]
[null,"Новомосковский АО"]
[null,"Троицкий АО"]
[null,"Зеленоградский АО"]
[]
[null,"Назначение объекта"]
[]
["№","Категория","Комментарий"]
[null,null,"-"]
[1,"Жилые дома","Жилые дома"]
[2,"Общественные и административно-бытовые помещения","Гостиницы, общежития, пансионаты, д/о, мотели"]
[3,"ДОУ","Детсады, ясли"]
[4,"Объекты спортивного назначения","Стадионы, ФОК, бассейны, спортзалы, спортшколы"]
[5,"Здравоохранение","Больницы, родильные дома, поликлиники, амбулатории, госпитали, морги"]
[6,"Образование","Школы, интернаты, дом ребенка, ПТУ, училища, Вузы, амбулатории"]
[7,"Административно-офисные помещения","МФК, офисы, деловые центры, типографии, почта"]
[8,"Социально-бытовые объекты","Прачечные, химчистки, душевые, бани,парикмахерские, общественные туалеты"]
[9,"Объекты торгового назначения","Магазин, торговые центры, торговые залы, аптеки, вещевой рынок, ларьки, торговые палатки"]
[10,"Досугово-развлекательные учреждения","Дом культуры, интернет-кафе, дискотеки, клубы"]
[11,"Культурные объекты","Театры, кинотеатры, музеи, постоянно действующие выставочные комплексы (центры)"]
[12,"Предприятия общественного питания","Столовые, кафе, рестораны, пиццерии, хлебопекарня"]
[13,"Объекты производственного назначения","Заводы, цеха, станции, тепловые пункты, депо, гаражи,ремонтно-механические мастерские, склады, АЗС,СТО"]
[14,"Объекты городской инфраструктуры","Вокзалы, парки, оранжереи, теплицы, сельхоз.рынки"]
[15,"Транспортная инфраструктура","Дороги, эстакады, мосты, тоннели, путепроводы, жел.дор.пути"]
[16,"Религиозные сооружения","Храм, церковь, синагога, мечеть, монастырь, часовня, кирха"]
[17,"Объекты защиты населения","Полиция, мчс, военные, ГИБДД, вневедомственная охрана, ЧОПы, военная полиция"]
[18,"Объекты складского назначения","Склады, навесы, ангары, сараи"]
[19,"Нежилые помещения","Объекты заявлены как нежилые помещение без уточнения дальнейшего назначения"]
[20,"Комплексная застройка","Большая застройка, куда попадают  объекты из разных категорий"]
[21,"Объекты незавершенного строительства","незавершенные объекты для проведения отделочных и пуско-наладочных работ"]
[22,"Прочее","Все, что не попало в категории выше"]
[]
[null,"Отделения сбыта"]
[]
[null,"Отделение сбыта №1 - г. Москва, ул. Складочная, д. 1А, стр. 1"]
[null,"Отделение сбыта №2 - г. Москва, ул. Бибиревская, д. 8 кор. 1"]
[null,"Отделение сбыта №3 - г. Москва, ул. Шарикоподшипниковская, д.1"]
[null,"Отделение сбыта №4 - г.Москва, пр. Андропова, д. 36 к. 2"]
[null,"Отделение сбыта №5 - г.Москва, ул.Героев Панфиловцев, д.10, к. 1"]
[null,"Отделение сбыта №6 - г.Зеленоград, корп. 1111А"]
[null,"Отделение сбыта №7 - г.Московский, 3 мкр., д.2а"]